fUST/lending_fUST_20250929
["ID","MTS","AMOUNT","RATE_DAILY","PERIOD"]
[388364726,1759123856485,-645.82,0.00027671,7]
[388364727,1759123856495,-490.71,0.00027671,7]
[388364728,1759123856504,-480.0,0.00027671,7]
[388364729,1759123856514,-1097.09,0.00027671,7]
[388364730,1759123856524,-481.43655962,0.00027671,7]
[388364731,1759123856533,-1824.94,0.00027671,7]
[388364732,1759123856543,-480.0,0.00027671,7]
[388364733,1759123856552,-1781.48,0.00027671,7]
[388364734,1759123856562,-1826.94,0.00027671,7]
[388364735,1759123856571,-8644.64,0.00027671,7]
[388364736,1759123856581,-594.85,0.00027671,7]
[388364737,1759123856591,-3964.25,0.00027671,7]
[388364738,1759123856600,-743.04,0.00027671,7]
[388364739,1759123856609,-1656.7,0.00027671,7]
[388364740,1759123856618,-283.89118956,0.00027671,7]
[388364741,1759123856627,-480.0,0.00027671,7]
[388364742,1759123856637,-482.18434321,0.00027671,7]
[388364743,1759123856646,-480.0,0.00027671,7]
[388364744,1759123856656,-480.0,0.00027671,7]
[388364745,1759123856665,-480.0,0.00027671,7]
[388364746,1759123856674,-1618.16,0.00027671,7]
[388364747,1759123856683,-1010.61,0.00027671,7]
[388364748,1759123856693,-2388.18,0.00027671,7]
[388364749,1759123856702,-480.0,0.00027671,7]
[388364750,1759123856711,-1077.35,0.00027671,7]
[388364751,1759123856720,-1777.27,0.00027671,7]
[388364752,1759123856730,-852.18,0.00027671,7]
[388364753,1759123856739,-1005.36,0.00027671,7]
[388364754,1759123856748,-5085.51,0.00027671,7]
[388364755,1759123856757,-4908.08,0.00027671,7]
[388364756,1759123856767,-285.1351391,0.00027671,7]
[388364757,1759123856776,-480.0,0.00027671,7]
[388364758,1759123856786,-599.93,0.00027671,7]
[388364759,1759123856795,-480.0,0.00027671,7]
[388364760,1759123856804,-1066.67,0.00027671,7]
[388364761,1759123856814,-1387.15,0.00027671,7]
[388364762,1759123856823,-480.0,0.00027671,7]
[388364763,1759123856833,-2942.17,0.00027671,7]
[388364764,1759123856842,-2076.19,0.00027671,7]
[388364765,1759123856851,-737.55,0.00027671,7]
[388364766,1759123856860,-480.0,0.00027671,7]
[388364767,1759123856870,-480.0,0.00027671,7]
[388364768,1759123856879,-480.0,0.00027671,7]
[388364769,1759123856888,-3946.01,0.00027671,7]
[388364770,1759123856897,-1800.28,0.00027671,7]
[388364771,1759123856906,-480.0,0.00027671,7]
[388364772,1759123856915,-1958.47,0.00027671,7]
[388364773,1759123856924,-480.0,0.00027671,7]
[388364774,1759123856933,-3653.56,0.00027671,7]
[388364775,1759123856943,-480.0,0.00027671,7]
[388364776,1759123856952,-771.73,0.00027671,7]
[388364777,1759123856961,-480.0,0.00027671,7]
[388364778,1759123856970,-480.0,0.00027671,7]
[388364779,1759123856979,-2215.75,0.00027671,7]
[388364780,1759123856988,-480.0,0.00027671,7]
[388364781,1759123856997,-480.0,0.00027671,7]
[388364782,1759123857007,-884.21,0.00027671,7]
[388364783,1759123857018,-982.5,0.00027671,7]
[388364784,1759123857031,-906.46,0.00027671,7]
[388364785,1759123857040,-480.0,0.00027671,7]
[388364786,1759123857050,-179.71061139,0.00027671,7]
[388364787,1759123857060,-1275.23,0.00027671,7]
[388364788,1759123857069,-2367.05,0.00027671,7]
[388364789,1759123857078,-480.0,0.00027671,7]
[388364790,1759123857087,-510.41,0.00027671,7]
[388364791,1759123857097,-908.5,0.00027671,7]
[388364792,1759123857106,-480.0,0.00027671,7]
[388364793,1759123857115,-480.0,0.00027671,7]
[388364794,1759123857124,-983.18,0.00027671,7]
[388364795,1759123857134,-1852.59,0.00027671,7]
[388364796,1759123857143,-605.3,0.00027671,7]
[388364797,1759123857152,-3249.56,0.00027671,7]
[388364798,1759123857161,-1973.43,0.00027671,7]
[388364799,1759123857169,-480.0,0.00027671,7]
[388364800,1759123857179,-434.81420793,0.00027671,7]
[388364801,1759123857188,-480.0,0.00027671,7]
[388364802,1759123857198,-960.9,0.00027671,7]
[388364803,1759123857207,-480.0,0.00027671,7]
[388364804,1759123857216,-1372.66,0.00027671,7]
[388364805,1759123857224,-932.67,0.00027671,7]
[388364806,1759123857233,-8719.87,0.00027671,7]
[388364807,1759123857242,-480.0,0.00027671,7]
[388364808,1759123857251,-480.0,0.00027671,7]
[388364809,1759123857260,-633.24,0.00027671,7]
[388364810,1759123857270,-3883.84,0.00027671,7]
[388364811,1759123857279,-480.0,0.00027671,7]
[388364812,1759123857288,-480.0,0.00027671,7]
[388364813,1759123857298,-480.0,0.00027671,7]
[388364814,1759123857307,-1664.46,0.00027671,7]
[388364815,1759123857317,-480.0,0.00027671,7]
[388364816,1759123857327,-540.91,0.00027671,7]
[388364817,1759123857336,-665.8,0.00027671,7]
[388364818,1759123857347,-633.8,0.00027671,7]
[388364819,1759123857356,-613.15,0.00027671,7]
[388364820,1759123857365,-8218.84,0.00027671,7]
[388364821,1759123857374,-2257.41,0.00027671,7]
[388364822,1759123857384,-480.0,0.00027671,7]
[388364823,1759123857393,-529.94,0.00027671,7]
[388364824,1759123857402,-936.43,0.00027671,7]
[388364825,1759123857412,-3669.91,0.00027671,7]
[388364826,1759123857422,-7147.03,0.00027671,3]
[388364827,1759123857431,-480.0,0.00027671,7]
[388364828,1759123857440,-480.0,0.00027671,7]
[388364829,1759123857450,-611.26,0.00027671,7]
[388364830,1759123857460,-782.3,0.00027671,7]
[388364831,1759123857469,-480.0,0.00027671,7]
[388364832,1759123857479,-480.0,0.00027671,7]
[388364833,1759123857488,-232.12671361,0.00027671,7]
[388364834,1759123857497,-552.49,0.00027671,7]
[388364835,1759123857507,-1114.83,0.00027671,7]
[388364836,1759123857516,-939.52,0.00027671,7]
[388364837,1759123857525,-1305.4,0.00027671,7]
[388364838,1759123857534,-480.0,0.00027671,7]
[388364839,1759123857543,-438.92,0.00027671,7]
[388364840,1759123857553,-5000.0,0.00027839,2]
[388364841,1759123857563,-4000.0,0.00027839,2]
[388364842,1759123857572,-460.4666,0.000279,2]
[388364843,1759123857582,-645.0,0.00027935,7]
[388364844,1759123857593,-151.0,0.00027935,7]
[388364845,1759123857603,-151.0,0.00027935,7]
[388364846,1759123857613,-151.0,0.00027935,7]
[388364847,1759123857622,-163.5744541,0.00027935,7]
[388364848,1759123857631,-1000.0,0.00027944,2]
[388364849,1759123857640,-480.0,0.00027945,7]
[388364850,1759123857650,-480.0,0.00027945,7]
[388364851,1759123857659,-607.86275313,0.00027945,7]
[388364852,1759123857668,-635.68,0.00027945,7]
[388364853,1759123857677,-480.0,0.00027945,7]
[388364854,1759123857685,-480.0,0.00027945,7]
[388364855,1759123857694,-600.54,0.00027945,7]
[388364856,1759123857703,-480.0,0.00027945,7]
[388364857,1759123857712,-821.56,0.00027945,7]
[388364858,1759123857721,-480.0,0.00027945,7]
[388364859,1759123857730,-480.0,0.00027945,7]
[388364860,1759123857740,-540.29,0.00027945,7]
[388364861,1759123857749,-584.87,0.00027945,7]
[388364862,1759123857759,-480.0,0.00027945,7]
[388364863,1759123857768,-747.76,0.00027945,7]
[388364864,1759123857778,-534.94,0.00027945,7]
[388364865,1759123857787,-480.0,0.00027945,7]
[388364866,1759123857796,-480.0,0.00027945,7]
[388364867,1759123857805,-480.0,0.00027945,7]
[388364868,1759123857814,-324.95317729,0.00027945,7]
[388364869,1759123857823,-480.0,0.00027945,7]
[388364870,1759123857832,-480.0,0.00027945,7]
[388364871,1759123857841,-480.0,0.00027945,7]
[388364872,1759123857850,-480.0,0.00027945,7]
[388364873,1759123857859,-480.0,0.00027945,7]
[388364874,1759123857868,-602.09,0.00027945,7]
[388364875,1759123857877,-480.0,0.00027945,7]
[388364876,1759123857886,-480.0,0.00027945,7]
[388364877,1759123857896,-480.0,0.00027945,7]
[388364878,1759123857906,-480.0,0.00027945,7]
[388364879,1759123857915,-529.53,0.00027945,7]
[388364880,1759123857924,-208.31665151,0.00027945,7]
[388364881,1759123857933,-482.0891319,0.00027945,7]
[388364882,1759123857943,-520.15000693,0.00027945,7]
[388364883,1759123857952,-480.0,0.00027945,7]
[388364884,1759123857961,-480.0,0.00027945,7]
[388364885,1759123857970,-855.31,0.00027945,7]
[388364886,1759123857979,-480.0,0.00027945,7]
[388364887,1759123857988,-484.17828141,0.00027945,7]
[388364888,1759123857997,-480.0,0.00027945,7]
[388364889,1759123858007,-480.0,0.00027945,7]
[388364890,1759123858016,-480.0,0.00027945,7]
[388364891,1759123858034,-480.0,0.00027945,7]
[388364892,1759123858043,-785.31,0.00027945,7]
[388364893,1759123858053,-499.75816364,0.00027945,7]
[388364894,1759123858063,-480.0,0.00027945,7]
[388364895,1759123858209,-480.0,0.00027945,7]
[388364896,1759123858219,-480.0,0.00027945,7]
[388364897,1759123858228,-480.0,0.00027945,7]
[388364898,1759123858237,-480.0,0.00027945,7]
[388364899,1759123858246,-1490.29,0.00027945,7]
[388364900,1759123858255,-740.35,0.00027945,7]
[388364901,1759123858264,-522.85,0.00027945,7]
[388364902,1759123858274,-282.58131913,0.00027945,7]
[388364903,1759123858283,-371.74785195,0.00027945,7]
[388364904,1759123858292,-480.0,0.00027945,7]
[388364905,1759123858302,-480.0,0.00027945,7]
[388364906,1759123858312,-480.0,0.00027945,7]
[388364907,1759123858323,-639.78,0.00027945,7]
[388364908,1759123858334,-406.98017044,0.00027945,7]
[388364909,1759123858344,-1369.88,0.00027945,7]
[388364910,1759123858354,-480.0,0.00027945,7]
[388364911,1759123858364,-705.53,0.00027945,7]
[388364912,1759123858373,-657.71,0.00027945,7]
[388364913,1759123858383,-480.0,0.00027945,7]
[388364914,1759123858392,-480.0,0.00027945,7]
[388364915,1759123858403,-480.0,0.00027945,7]
[388364916,1759123858412,-480.0,0.00027945,7]
[388364917,1759123858421,-480.0,0.00027945,7]
[388364918,1759123858431,-845.21,0.00027945,7]
[388364919,1759123858440,-1027.07,0.00027945,7]
[388364920,1759123858450,-536.76,0.00027945,7]
[388364921,1759123858460,-747.98,0.00027945,7]
[388364922,1759123858469,-480.0,0.00027945,7]
[388364923,1759123858478,-601.64,0.00027945,7]
[388364924,1759123858488,-480.0,0.00027945,7]
[388364925,1759123858498,-480.0,0.00027945,7]
[388364926,1759123858507,-480.0,0.00027945,7]
[388364927,1759123858517,-605.31,0.00027945,7]
[388364928,1759123858525,-745.48,0.00027945,7]
[388364929,1759123858536,-480.0,0.00027945,7]
[388364930,1759123858545,-480.0,0.00027945,7]
[388364931,1759123858555,-1014.39,0.00027945,7]
[388364932,1759123858565,-786.26,0.00027945,7]
[388364933,1759123858574,-480.0,0.00027945,7]
[388364934,1759123858585,-480.0,0.00027945,7]
[388364935,1759123858595,-951.72,0.00027945,7]
[388364936,1759123858604,-480.0,0.00027945,7]
[388364937,1759123858614,-480.0,0.00027945,7]
[388364938,1759123858623,-480.0,0.00027945,7]
[388364939,1759123858631,-480.0,0.00027945,7]
[388364940,1759123858640,-480.0,0.00027945,7]
[388364941,1759123858650,-756.74,0.00027945,7]
[388364942,1759123858659,-480.0,0.00027945,7]
[388364943,1759123858668,-1021.99,0.00027945,7]
[388364944,1759123858678,-480.0,0.00027945,7]
[388364945,1759123858687,-480.0,0.00027945,7]
[388364946,1759123858696,-480.0,0.00027945,7]
[388364947,1759123858705,-480.0,0.00027945,7]
[388364948,1759123858714,-480.0,0.00027945,7]
[388364949,1759123858723,-480.0,0.00027945,7]
[388364950,1759123858732,-480.0,0.00027945,7]
[388364951,1759123858741,-1579.01,0.00027945,7]
[388364952,1759123858751,-480.0,0.00027945,7]
[388364953,1759123858760,-492.98,0.00027945,7]
[388364954,1759123858769,-480.0,0.00027945,7]
[388364955,1759123858778,-480.0,0.00027945,7]
[388364956,1759123858788,-480.0,0.00027945,7]
[388364957,1759123858797,-480.0,0.00027945,7]
[388364958,1759123858806,-480.0,0.00027945,7]
[388364959,1759123858815,-480.0,0.00027945,7]
[388364960,1759123858824,-2146.46,0.00027945,7]
[388364961,1759123858833,-588.58,0.00027945,7]
[388364962,1759123858843,-480.0,0.00027945,7]
[388364963,1759123858852,-828.82,0.00027945,7]
[388364964,1759123858862,-890.29,0.00027945,7]
[388364965,1759123858871,-975.29,0.00027945,7]
[388364966,1759123858881,-480.0,0.00027945,7]
[388364967,1759123858890,-480.0,0.00027945,7]
[388364968,1759123858900,-1101.88,0.00027945,7]
[388364969,1759123858909,-480.0,0.00027945,7]
[388364970,1759123858919,-480.0,0.00027945,7]
[388364971,1759123858928,-480.0,0.00027945,7]
[388364972,1759123858936,-818.66,0.00027945,7]
[388364973,1759123858945,-311.89452982,0.00027945,7]
[388364974,1759123858954,-480.0,0.00027945,7]
[388364975,1759123858964,-480.0,0.00027945,7]
[388364976,1759123858973,-480.0,0.00027945,7]
[388364977,1759123858982,-480.0,0.00027945,7]
[388364978,1759123858991,-480.0,0.00027945,7]
[388364979,1759123859000,-858.52,0.00027945,7]
[388364980,1759123859009,-546.61,0.00027945,7]
[388364981,1759123859020,-480.0,0.00027945,7]
[388364982,1759123859031,-1292.04,0.00027945,7]
[388364983,1759123859040,-480.0,0.00027945,7]
[388364984,1759123859050,-480.0,0.00027945,7]
[388364985,1759123859058,-480.0,0.00027945,7]
[388364986,1759123859067,-965.27,0.00027945,7]
[388364987,1759123859076,-480.0,0.00027945,7]
[388364988,1759123859085,-1024.98,0.00027945,7]
[388364989,1759123859095,-2040.09,0.00027945,7]
[388364990,1759123859107,-480.0,0.00027945,7]
[388364991,1759123859116,-480.0,0.00027945,7]
[388364992,1759123859125,-520.0,0.00027945,3]
[388364993,1759123859134,-480.0,0.00027945,7]
[388364994,1759123859144,-1082.23,0.00027945,7]
[388364995,1759123859154,-480.0,0.00027945,7]
[388364996,1759123859163,-480.0,0.00027945,7]
[388364997,1759123859172,-480.0,0.00027945,7]
[388364998,1759123859181,-220.83,0.00027945,7]
[388364999,1759123859191,-480.0,0.00027945,7]
[388365000,1759123859199,-480.0,0.00027945,7]
[388365001,1759123859208,-480.0,0.00027945,7]
[388365002,1759123859217,-480.89078496,0.00027945,7]
[388365003,1759123859226,-1731.05,0.00027945,7]
[388365004,1759123859235,-480.0,0.00027945,7]
[388365005,1759123859245,-780.24,0.00027945,7]
[388365006,1759123859255,-719.21,0.00027945,7]
[388365007,1759123859264,-571.03,0.00027945,7]
[388365008,1759123859272,-480.0,0.00027945,7]
[388365009,1759123859282,-480.0,0.00027945,7]
[388365010,1759123859291,-480.0,0.00027945,7]
[388365011,1759123859301,-433.17874425,0.00027945,7]
[388365012,1759123859310,-480.0,0.00027945,7]
[388365013,1759123859320,-499.12196875,0.00027945,7]
[388365014,1759123859330,-913.61,0.00027945,7]
[388365015,1759123859338,-1993.37,0.00027945,7]
[388365016,1759123859348,-617.75329631,0.00027945,7]
[388365017,1759123859357,-480.0,0.00027945,7]
[388365018,1759123859366,-479.0927907,0.00027945,7]
[388365019,1759123859376,-480.0,0.00027945,7]
[388365020,1759123859386,-912.26,0.00027945,7]
[388365021,1759123859395,-480.0,0.00027945,7]
[388365022,1759123859404,-480.0,0.00027945,7]
[388365023,1759123859413,-568.18,0.00027945,7]
[388365024,1759123859422,-480.0,0.00027945,7]
[388365025,1759123859431,-480.0,0.00027945,7]
[388365026,1759123859440,-271.66130833,0.00027945,7]
[388365027,1759123859450,-684.42,0.00027945,7]
[388365028,1759123859458,-480.0,0.00027945,7]
[388365029,1759123859467,-857.17,0.00027945,7]
[388365030,1759123859476,-480.0,0.00027945,7]
[388365031,1759123859485,-480.0,0.00027945,7]
[388365032,1759123859495,-480.0,0.00027945,7]
[388365033,1759123859504,-480.0,0.00027945,7]
[388365034,1759123859514,-480.0,0.00027945,7]
[388365035,1759123859523,-850.5,0.00027945,7]
[388365036,1759123859533,-480.0,0.00027945,7]
[388365037,1759123859541,-525.62,0.00027945,7]
[388365038,1759123859551,-501.73,0.00027945,7]
[388365039,1759123859560,-480.0,0.00027945,7]
[388365040,1759123859569,-480.0,0.00027945,7]
[388365041,1759123859578,-480.0,0.00027945,7]
[388365042,1759123859587,-480.0,0.00027945,7]
[388365043,1759123859596,-525.87,0.00027945,7]
[388365044,1759123859605,-771.83,0.00027945,7]
[388365045,1759123859615,-755.62,0.00027945,7]
[388365046,1759123859624,-480.0,0.00027945,7]
[388365047,1759123859633,-841.12,0.00027945,7]
[388365048,1759123859643,-480.0,0.00027945,7]
[388365049,1759123859652,-755.87,0.00027945,7]
[388365050,1759123859661,-480.0,0.00027945,7]
[388365051,1759123859670,-480.0,0.00027945,7]
[388365052,1759123859679,-480.0,0.00027945,7]
[388365053,1759123859688,-853.23,0.00027945,7]
[388365054,1759123859697,-480.0,0.00027945,7]
[388365055,1759123859706,-480.0,0.00027945,7]
[388365056,1759123859715,-807.11,0.00027945,7]
[388365057,1759123859724,-1055.96,0.00027945,7]
[388365058,1759123859733,-480.0,0.00027945,7]
[388365059,1759123859742,-507.17,0.00027945,7]
[388365060,1759123859751,-735.63,0.00027945,7]
[388365061,1759123859761,-480.0,0.00027945,7]
[388365062,1759123859769,-503.07,0.00027945,7]
[388365063,1759123859780,-2631.2,0.00027945,7]
[388365064,1759123859789,-480.0,0.00027945,7]
[388365065,1759123859799,-480.0,0.00027945,7]
[388365066,1759123859808,-480.0,0.00027945,7]
[388365067,1759123859817,-607.87267304,0.00027945,7]
[388365068,1759123859826,-480.0,0.00027945,7]
[388365069,1759123859836,-769.51,0.00027945,7]
[388365070,1759123859845,-735.28,0.00027945,7]
[388365071,1759123859854,-480.0,0.00027945,7]
[388365072,1759123859864,-1048.93,0.00027945,7]
[388365073,1759123859873,-524.36,0.00027945,7]
[388365074,1759123859883,-725.88,0.00027945,7]
[388365075,1759123859892,-480.0,0.00027945,7]
[388365076,1759123859901,-480.0,0.00027945,7]
[388365077,1759123859910,-984.04,0.00027945,7]
[388365078,1759123859920,-480.0,0.00027945,7]
[388365079,1759123859929,-318.42721548,0.00027945,7]
[388365080,1759123859938,-480.0,0.00027945,7]
[388365081,1759123859947,-480.0,0.00027945,7]
[388365082,1759123859956,-480.0,0.00027945,7]
[388365083,1759123859965,-480.0,0.00027945,7]
[388365084,1759123859975,-500.0,0.00027945,7]
[388365085,1759123859984,-480.0,0.00027945,7]
[388365086,1759123859993,-480.0,0.00027945,7]
[388365087,1759123860003,-480.0,0.00027945,7]
[388365088,1759123860012,-1024.65,0.00027945,7]
[388365089,1759123860022,-480.0,0.00027945,7]
[388365090,1759123860032,-1262.82,0.00027945,7]
[388365091,1759123860041,-480.0,0.00027945,7]
[388365092,1759123860052,-569.73,0.00027945,7]
[388365093,1759123860061,-1051.8,0.00027945,7]
[388365094,1759123860071,-480.0,0.00027945,7]
[388365095,1759123860081,-480.0,0.00027945,7]
[388365096,1759123860091,-659.39,0.00027945,7]
[388365097,1759123860101,-480.0,0.00027945,7]
[388365098,1759123860111,-672.82,0.00027945,7]
[388365099,1759123860120,-569.09,0.00027945,7]
[388365100,1759123860130,-480.0,0.00027945,7]
[388365101,1759123860139,-480.0,0.00027945,7]
[388365102,1759123860148,-480.0,0.00027945,7]
[388365103,1759123860158,-480.0,0.00027945,7]
[388365104,1759123860167,-480.0,0.00027945,7]
[388365105,1759123860176,-338.45612413,0.00027945,7]
[388365106,1759123860186,-1048.4,0.00027945,7]
[388365107,1759123860195,-481.2073126,0.00027945,7]
[388365108,1759123860204,-492.11827383,0.00027945,7]
[388365109,1759123860213,-963.09,0.00027945,7]
[388365110,1759123860223,-480.0,0.00027945,7]
[388365111,1759123860232,-480.0,0.00027945,7]
[388365112,1759123860241,-593.48,0.00027945,7]
[388365113,1759123860251,-566.39,0.00027945,7]
[388365114,1759123860259,-480.0,0.00027945,7]
[388365115,1759123860269,-627.61,0.00027945,7]
[388365116,1759123860278,-480.0,0.00027945,7]
[388365117,1759123860287,-480.0,0.00027945,7]
[388365118,1759123860295,-568.89,0.00027945,7]
[388365119,1759123860304,-550.03,0.00027945,7]
[388365120,1759123860314,-480.0,0.00027945,7]
[388365121,1759123860323,-480.0,0.00027945,7]
[388365122,1759123860333,-974.28,0.00027945,7]
[388365123,1759123860342,-558.65587692,0.00027945,7]
[388365124,1759123860352,-480.0,0.00027945,7]
[388365125,1759123860361,-480.0,0.00027945,7]
[388365126,1759123860370,-480.0,0.00027945,7]
[388365127,1759123860380,-225.69389488,0.00027945,7]
[388365128,1759123860389,-480.0,0.00027945,7]
[388365129,1759123860398,-2752.86,0.00027945,7]
[388365130,1759123860408,-480.0,0.00027945,7]
[388365131,1759123860417,-480.0,0.00027945,7]
[388365132,1759123860551,-843.49,0.00027945,7]
[388365133,1759123860561,-764.75,0.00027945,7]
[388365134,1759123860571,-480.0,0.00027945,7]
[388365135,1759123860581,-1742.19,0.00027945,7]
[388365136,1759123860590,-730.16,0.00027945,7]
[388365137,1759123860599,-1919.55,0.00027945,7]
[388365138,1759123860609,-576.01,0.00027945,7]
[388365139,1759123860618,-480.0,0.00027945,7]
[388365140,1759123860627,-480.0,0.00027945,7]
[388365141,1759123860637,-480.0,0.00027945,7]
[388365142,1759123860646,-480.0,0.00027945,7]
[388365143,1759123860655,-480.0,0.00027945,7]
[388365144,1759123860664,-480.0,0.00027945,7]
[388365145,1759123860674,-588.33,0.00027945,7]
[388365146,1759123860683,-480.0,0.00027945,7]
[388365147,1759123860692,-480.0,0.00027945,7]
[388365148,1759123860702,-480.0,0.00027945,7]
[388365149,1759123860711,-480.0,0.00027945,7]
[388365150,1759123860720,-480.0,0.00027945,7]
[388365151,1759123860730,-876.81,0.00027945,7]
[388365152,1759123860740,-580.19,0.00027945,7]
[388365153,1759123860749,-1460.03,0.00027945,7]
[388365154,1759123860759,-480.0,0.00027945,7]
[388365155,1759123860768,-480.0,0.00027945,7]
[388365156,1759123860778,-480.0,0.00027945,7]
[388365157,1759123860788,-480.0,0.00027945,7]
[388365158,1759123860798,-480.0,0.00027945,7]
[388365159,1759123860807,-480.0,0.00027945,7]
[388365160,1759123860817,-480.0,0.00027945,7]
[388365161,1759123860827,-828.68,0.00027945,7]
[388365162,1759123860836,-480.0,0.00027945,7]
[388365163,1759123860846,-896.74,0.00027945,7]
[388365164,1759123860855,-485.5710784,0.00027945,7]
[388365165,1759123860864,-480.0,0.00027945,7]
[388365166,1759123860874,-731.72,0.00027945,7]
[388365167,1759123860883,-861.64,0.00027945,7]
[388365168,1759123860892,-480.0,0.00027945,7]
[388365169,1759123860902,-480.0,0.00027945,7]
[388365170,1759123860911,-618.06,0.00027945,7]
[388365171,1759123860920,-480.0,0.00027945,7]
[388365172,1759123860930,-500.0,0.00027945,7]
[388365173,1759123860939,-480.0,0.00027945,7]
[388365174,1759123860948,-480.0,0.00027945,7]
[388365175,1759123860957,-893.39,0.00027945,7]
[388365176,1759123860966,-480.0,0.00027945,7]
[388365177,1759123860976,-783.7,0.00027945,7]
[388365178,1759123860986,-480.87303557,0.00027945,7]
[388365179,1759123860996,-480.0,0.00027945,7]
[388365180,1759123861005,-493.90414387,0.00027945,7]
[388365181,1759123861014,-920.4,0.00027945,7]
[388365182,1759123861026,-480.0,0.00027945,7]
[388365183,1759123861035,-955.3,0.00027945,7]
[388365184,1759123861045,-607.6,0.00027945,7]
[388365185,1759123861054,-480.0,0.00027945,7]
[388365186,1759123861064,-545.07,0.00027945,7]
[388365187,1759123861074,-480.0,0.00027945,7]
[388365188,1759123861083,-531.3,0.00027945,7]
[388365189,1759123861093,-480.0,0.00027945,7]
[388365190,1759123861103,-500.0,0.00027945,7]
[388365191,1759123861112,-480.0,0.00027945,7]
[388365192,1759123861121,-480.0,0.00027945,7]
[388365193,1759123861130,-480.0,0.00027945,7]
[388365194,1759123861140,-819.26,0.00027945,7]
[388365195,1759123861149,-480.0,0.00027945,7]
[388365196,1759123861158,-804.85,0.00027945,7]
[388365197,1759123861167,-480.0,0.00027945,7]
[388365198,1759123861176,-651.85,0.00027945,7]
[388365199,1759123861186,-677.63,0.00027945,7]
[388365200,1759123861195,-3317.91,0.00027945,7]
[388365201,1759123861205,-480.0,0.00027945,7]
[388365202,1759123861213,-480.0,0.00027945,7]
[388365203,1759123861222,-834.25,0.00027945,7]
[388365204,1759123861232,-1053.28,0.00027945,7]
[388365205,1759123861241,-653.65,0.00027945,7]
[388365206,1759123861250,-932.8,0.00027945,7]
[388365207,1759123861259,-1431.13,0.00027945,7]
[388365208,1759123861268,-584.41,0.00027945,7]
[388365209,1759123861277,-1557.72,0.00027945,7]
[388365210,1759123861286,-529.35,0.00027945,7]
[388365211,1759123861296,-17955.94,0.00027945,7]
[388365212,1759123861305,-480.0,0.00027945,7]
[388365213,1759123861314,-557.05,0.00027945,7]
[388365214,1759123861323,-536.1,0.00027945,7]
[388365215,1759123861333,-480.0,0.00027945,7]
[388365216,1759123861342,-480.0,0.00027945,7]
[388365217,1759123861352,-1351.5,0.00027945,7]
[388365218,1759123861361,-1504.12,0.00027945,7]
[388365219,1759123861370,-1055.88,0.00027945,7]
[388365220,1759123861379,-948.69,0.00027945,7]
[388365221,1759123861388,-959.12,0.00027945,7]
[388365222,1759123861397,-777.3,0.00027945,7]
[388365223,1759123861406,-1535.44,0.00027945,7]
[388365224,1759123861416,-480.0,0.00027945,7]
[388365225,1759123861425,-228.48045653,0.00027945,7]